fUST/lending_fUST_20251203
["ID","MTS","AMOUNT","RATE_DAILY","PERIOD"]
[395529555,1764700279955,-500.0,0.00014794,2]
[395529556,1764700279964,-708.34,0.00014794,2]
[395529558,1764700279973,-511.30824503,0.00014794,2]
[395529560,1764700279983,-3534.78,0.00014794,2]
[395529562,1764700279993,-1590.78,0.00014794,2]
[395529564,1764700280002,-1468.43,0.00014794,2]
[395529566,1764700280012,-1529.68,0.00014794,2]
[395529568,1764700280022,-500.0,0.00014794,2]
[395529570,1764700280031,-1389.1,0.00014794,2]
[395529572,1764700280041,-500.0,0.00014794,2]
[395529574,1764700280051,-1486.77,0.00014794,2]
[395529576,1764700280060,-713.64,0.00014794,2]
[395529578,1764700280070,-500.0,0.00014794,2]
[395529580,1764700280080,-2062.66,0.00014794,2]
[395529582,1764700280089,-2029.83,0.00014794,2]
[395529584,1764700280099,-1207.71,0.00014794,2]
[395529586,1764700280108,-500.0,0.00014794,2]
[395529588,1764700280118,-750.49,0.00014794,2]
[395529591,1764700280128,-913.85,0.00014794,2]
[395529592,1764700280142,-500.0,0.00014794,2]
[395529595,1764700280152,-520.63,0.00014794,2]
[395529596,1764700280161,-500.0,0.00014794,2]
[395529598,1764700280171,-709.72,0.00014794,2]
[395529601,1764700280182,-3520.43,0.00014794,2]
[395529603,1764700280192,-500.0,0.00014794,2]
[395529605,1764700280202,-1047.77,0.00014794,2]
[395529607,1764700280212,-4898.68,0.00014794,2]
[395529609,1764700280222,-673.82,0.00014794,2]
[395529611,1764700280232,-500.0,0.00014794,2]
[395529613,1764700280243,-500.0,0.00014794,2]
[395529614,1764700280252,-502.86582714,0.00014794,2]
[395529616,1764700280262,-801.02,0.00014794,2]
[395529618,1764700280272,-500.0,0.00014794,2]
[395529620,1764700280281,-724.17,0.00014794,2]
[395529622,1764700280291,-500.0,0.00014794,2]
[395529624,1764700280300,-500.0,0.00014794,2]
[395529626,1764700280310,-583.23,0.00014794,2]
[395529628,1764700280319,-500.0,0.00014794,2]
[395529630,1764700280329,-500.0,0.00014794,2]
[395529632,1764700280339,-1171.68,0.00014794,2]
[395529634,1764700280349,-500.0,0.00014794,2]
[395529636,1764700280359,-881.41,0.00014794,2]
[395529638,1764700280369,-500.0,0.00014794,2]
[395529640,1764700280378,-1267.99,0.00014794,2]
[395529641,1764700280389,-1142.87,0.00014794,2]
[395529642,1764700280399,-500.0,0.00014794,2]
[395529643,1764700280409,-1457.82,0.00014794,2]
[395529644,1764700280418,-915.82,0.00014794,2]
[395529645,1764700280428,-500.0,0.00014794,2]
[395529646,1764700280438,-500.0,0.00014794,2]
[395529647,1764700280447,-500.0,0.00014794,2]
[395529648,1764700280457,-2661.54,0.00014794,2]
[395529649,1764700280469,-505.26863811,0.00014794,2]
[395529650,1764700280478,-500.0,0.00014794,2]
[395529651,1764700280488,-1935.63,0.00014794,2]
[395529652,1764700280497,-1134.19,0.00014794,2]
[395529653,1764700280508,-899.26,0.00014794,2]
[395529654,1764700280517,-500.0,0.00014794,2]
[395529655,1764700280527,-959.04,0.00014794,2]
[395529656,1764700280536,-500.0,0.00014794,2]
[395529657,1764700280546,-1017.99,0.00014794,2]
[395529658,1764700280555,-706.02,0.00014794,2]
[395529659,1764700280564,-1153.44,0.00014794,2]
[395529660,1764700280574,-504.48094311,0.00014794,2]
[395529661,1764700280584,-2278.79,0.00014794,2]
[395529662,1764700280594,-1463.33,0.00014794,2]
[395529663,1764700280604,-975.51,0.00014794,2]
[395529664,1764700280613,-3510.59,0.00014794,2]
[395529665,1764700280623,-500.0,0.00014794,2]
[395529666,1764700280633,-1318.57,0.00014794,2]
[395529667,1764700280643,-658.21,0.00014794,2]
[395529668,1764700280653,-724.89,0.00014794,2]
[395529669,1764700280663,-500.0,0.00014794,2]
[395529670,1764700280673,-1604.84,0.00014794,2]
[395529671,1764700280683,-500.0,0.00014794,2]
[395529672,1764700280694,-2443.05,0.00014794,2]
[395529673,1764700280703,-1692.26,0.00014794,2]
[395529674,1764700280713,-800.7,0.00014794,2]
[395529676,1764700280723,-6638.44,0.00014794,2]
[395529677,1764700280734,-693.36,0.00014794,2]
[395529679,1764700280745,-1081.66,0.00014794,2]
[395529681,1764700280754,-1134.95,0.00014794,2]
[395529683,1764700280764,-1470.65,0.00014794,2]
[395529685,1764700280773,-500.0,0.00014794,2]
[395529688,1764700280784,-709.13,0.00014794,2]
[395529690,1764700280794,-659.35,0.00014794,2]
[395529692,1764700280804,-500.0,0.00014794,2]
[395529694,1764700280814,-500.0,0.00014794,2]
[395529696,1764700280824,-500.0,0.00014794,2]
[395529698,1764700280834,-500.0,0.00014794,2]
[395529700,1764700280844,-1437.01,0.00014794,2]
[395529720,1764700281031,-2076.76,0.00014794,2]
[395529723,1764700281052,-5782.36,0.00014794,2]
[395529726,1764700281068,-1358.8,0.00014794,2]
[395529728,1764700281078,-692.47,0.00014794,2]
[395529730,1764700281089,-802.64,0.00014794,2]
[395529732,1764700281099,-810.54,0.00014794,2]
[395529734,1764700281108,-975.44,0.00014794,2]
[395529736,1764700281119,-500.0,0.00014794,2]
[395529738,1764700281132,-917.05,0.00014794,2]
[395529740,1764700281142,-500.0,0.00014794,2]
[395529742,1764700281151,-500.0,0.00014794,2]
[395529744,1764700281161,-500.0,0.00014794,2]
[395529746,1764700281171,-1542.69,0.00014794,2]
[395529748,1764700281182,-1337.53,0.00014794,2]
[395529750,1764700281191,-744.29,0.00014794,2]
[395529752,1764700281200,-1929.03,0.00014794,2]
[395529754,1764700281211,-811.34,0.00014794,2]
[395529756,1764700281223,-500.0,0.00014794,2]
[395529758,1764700281232,-500.0,0.00014794,2]
[395529760,1764700281242,-567.04,0.00014794,2]
[395529762,1764700281251,-989.76,0.00014794,2]
[395529764,1764700281261,-7095.35,0.00014794,2]
[395529766,1764700281270,-500.0,0.00014794,2]
[395529768,1764700281279,-1182.79,0.00014794,2]
[395529770,1764700281289,-1204.25,0.00014794,2]
[395529772,1764700281299,-912.9,0.00014794,2]
[395529774,1764700281309,-500.0,0.00014794,2]
[395529776,1764700281318,-1091.06,0.00014794,2]
[395529777,1764700281328,-918.29,0.00014794,2]
[395529779,1764700281337,-500.0,0.00014794,2]
[395529781,1764700281346,-500.0,0.00014794,2]
[395529783,1764700281356,-835.94,0.00014794,2]
[395529786,1764700281367,-500.0,0.00014794,2]
[395529788,1764700281377,-619.94,0.00014794,2]
[395529789,1764700281386,-500.0,0.00014794,2]
[395529791,1764700281395,-780.65,0.00014794,2]
[395529793,1764700281405,-500.0,0.00014794,2]
[395529795,1764700281413,-500.0,0.00014794,2]
[395529797,1764700281422,-500.0,0.00014794,2]
[395529799,1764700281432,-1453.53,0.00014794,2]
[395529801,1764700281441,-500.0,0.00014794,2]
[395529803,1764700281460,-654.87,0.00014794,2]
[395529805,1764700281480,-2130.53,0.00014794,2]
[395529807,1764700281489,-4391.85,0.00014794,2]
[395529809,1764700281499,-504.68795482,0.00014794,2]
[395529811,1764700281509,-3348.12,0.00014794,2]
[395529813,1764700281518,-502.89015731,0.00014794,2]
[395529815,1764700281527,-1296.64,0.00014794,2]
[395529817,1764700281536,-500.0,0.00014794,2]
[395529819,1764700281545,-1347.62,0.00014794,2]
[395529821,1764700281555,-1302.34,0.00014794,2]
[395529823,1764700281565,-500.0,0.00014794,2]
[395529825,1764700281574,-500.0,0.00014794,2]
[395529827,1764700281583,-741.45,0.00014794,2]
[395529829,1764700281592,-500.0,0.00014794,2]
[395529831,1764700281602,-703.29,0.00014794,2]
[395529833,1764700281611,-500.0,0.00014794,2]
[395529835,1764700281621,-519.82581633,0.00014794,2]
[395529837,1764700281630,-3107.02,0.00014794,2]
[395529839,1764700281639,-500.0,0.00014794,2]
[395529841,1764700281648,-3100.21,0.00014794,2]
[395529843,1764700281658,-500.0,0.00014794,2]
[395529845,1764700281667,-500.0,0.00014794,2]
[395529847,1764700281676,-819.83,0.00014794,2]
[395529849,1764700281686,-500.0,0.00014794,2]
[395529851,1764700281695,-500.0,0.00014794,2]
[395529853,1764700281706,-500.0,0.00014794,2]
[395529855,1764700281717,-500.0,0.00014794,2]
[395529858,1764700281727,-502.39390901,0.00014794,2]
[395529860,1764700281737,-500.0,0.00014794,2]
[395529862,1764700281747,-500.0,0.00014794,2]
[395529864,1764700281756,-500.0,0.00014794,2]
[395529866,1764700281766,-500.0,0.00014794,2]
[395529868,1764700281776,-1685.38,0.00014794,2]
[395529870,1764700281786,-758.24,0.00014794,2]
[395529872,1764700281796,-500.0,0.00014794,2]
[395529873,1764700281805,-1302.06,0.00014794,2]
[395529875,1764700281815,-539.01,0.00014794,2]
[395529877,1764700281826,-500.0,0.00014794,2]
[395529879,1764700281835,-500.0,0.00014794,2]
[395529881,1764700281845,-978.33,0.00014794,2]
[395529884,1764700281857,-1527.03,0.00014794,2]
[395529886,1764700281866,-5315.98,0.00014794,2]
[395529887,1764700281876,-500.0,0.00014794,2]
[395529889,1764700281886,-500.0,0.00014794,2]
[395529892,1764700281895,-1275.67,0.00014794,2]
[395529893,1764700281906,-1340.01,0.00014794,2]
[395529895,1764700281916,-500.0,0.00014794,2]
[395529897,1764700281925,-840.94,0.00014794,2]
[395529899,1764700281935,-500.0,0.00014794,2]
[395529901,1764700281944,-575.55353737,0.00014794,2]
[395529903,1764700281954,-500.0,0.00014794,2]
[395529905,1764700281963,-500.0,0.00014794,2]
[395529908,1764700281974,-1356.24,0.00014794,2]
[395529910,1764700281984,-500.0,0.00014794,2]
[395529912,1764700281993,-510.72,0.00014794,2]
[395529914,1764700282003,-745.97,0.00014794,2]
[395529916,1764700282012,-500.0,0.00014794,2]
[395529918,1764700282022,-1054.46,0.00014794,2]
[395529920,1764700282032,-516.43667393,0.00014794,2]
[395529922,1764700282041,-500.0,0.00014794,2]
[395529924,1764700282051,-500.0,0.00014795,2]
[395529926,1764700282060,-554.55060455,0.00014795,2]
[395529928,1764700282070,-500.0,0.00014795,2]
[395529930,1764700282079,-1500.0,0.00014795,2]
[395529932,1764700282088,-507.28573365,0.00014795,2]
[395529934,1764700282098,-1500.0,0.00014795,2]
[395529936,1764700282108,-1156.58043776,0.00014795,2]
[395529938,1764700282117,-1500.0,0.00014795,2]
[395529940,1764700282128,-1500.0,0.00014795,2]
[395529942,1764700282140,-250.0,0.000148,2]
[395529943,1764700282151,-250.0,0.000148,2]
[395529945,1764700282160,-250.0,0.000148,2]
[395529947,1764700282170,-250.0,0.000148,2]
[395529949,1764700282179,-250.0,0.000148,2]
[395529951,1764700282188,-250.0,0.000148,2]
[395529953,1764700282198,-250.0,0.000148,2]
[395529955,1764700282208,-250.0,0.000148,2]
[395529957,1764700282220,-192.0,0.000148,2]
[395529959,1764700282230,-250.0,0.00014907,2]
[395529961,1764700282239,-2000.0,0.00014916,2]
[395529963,1764700282249,-2000.0,0.00014916,2]
[395529965,1764700282259,-2000.0,0.00014916,2]
[395529967,1764700282269,-500.53471818,0.00014984,2]
[395529969,1764700282278,-12004.0,0.00015,2]
[395529971,1764700282288,-500.0,0.00015068,2]
[395529973,1764700282298,-500.0,0.00015068,2]
[395529975,1764700282308,-500.0,0.00015068,2]
[395529977,1764700282317,-500.0,0.00015068,2]
[395529979,1764700282326,-500.0,0.00015068,2]
[395529981,1764700282335,-500.0,0.00015068,2]
[395529983,1764700282345,-500.0,0.00015068,2]
[395529985,1764700282355,-500.0,0.00015068,2]
[395529987,1764700282364,-822.86,0.00015068,2]
[395529989,1764700282374,-690.16,0.00015068,2]
[395529991,1764700282383,-500.0,0.00015068,2]
[395529993,1764700282392,-944.82,0.00015068,2]
[395529994,1764700282401,-500.0,0.00015068,2]
[395529996,1764700282411,-500.0,0.00015068,2]
[395529998,1764700282420,-1072.55,0.00015068,2]
[395530001,1764700282429,-500.0,0.00015068,2]
[395530002,1764700282438,-500.0,0.00015068,2]
[395530004,1764700282447,-500.0,0.00015068,2]
[395530006,1764700282457,-500.0,0.00015068,2]
[395530008,1764700282466,-599.59,0.00015068,2]
[395530010,1764700282475,-379.62514576,0.00015068,2]
[395530012,1764700282484,-500.0,0.00015068,2]
[395530015,1764700282497,-500.0,0.00015068,2]
[395530017,1764700282506,-500.0,0.00015068,2]
[395530019,1764700282516,-502.99165664,0.00015068,2]
[395530021,1764700282526,-500.0,0.00015068,2]
[395530023,1764700282537,-500.0,0.00015068,2]
[395530025,1764700282558,-500.0,0.00015068,2]
[395530027,1764700282568,-886.13,0.00015068,2]
[395530029,1764700282577,-623.2,0.00015068,2]
[395530031,1764700282587,-500.0,0.00015068,2]
[395530033,1764700282597,-500.0,0.00015068,2]
[395530035,1764700282606,-911.67,0.00015068,2]
[395530037,1764700282616,-500.0,0.00015068,2]
[395530039,1764700282626,-501.23067289,0.00015068,2]
[395530041,1764700282636,-954.32,0.00015068,2]
[395530043,1764700282645,-500.0,0.00015068,2]
[395530045,1764700282655,-500.0,0.00015068,2]
[395530047,1764700282665,-500.0,0.00015068,2]
[395530049,1764700282675,-500.0,0.00015068,2]
[395530051,1764700282685,-500.0,0.00015068,2]
[395530053,1764700282694,-500.0,0.00015068,2]
[395530055,1764700282704,-500.0,0.00015068,2]
[395530057,1764700282713,-506.81051775,0.00015068,2]
[395530059,1764700282723,-621.63,0.00015068,2]
[395530061,1764700282733,-500.0,0.00015068,2]
[395530063,1764700282743,-500.0,0.00015068,2]
[395530065,1764700282752,-500.0,0.00015068,2]
[395530067,1764700282762,-500.0,0.00015068,2]
[395530069,1764700282771,-500.0,0.00015068,2]
[395530071,1764700282780,-1280.13,0.00015068,2]
[395530073,1764700282790,-524.35,0.00015068,2]
[395530075,1764700282800,-861.06,0.00015068,2]
[395530077,1764700282809,-1138.79,0.00015068,2]
[395530079,1764700282820,-609.33905034,0.00015068,2]
[395530081,1764700282830,-501.62265819,0.00015068,2]
[395530083,1764700282840,-500.0,0.00015068,2]
[395530085,1764700282850,-500.0,0.00015068,2]
[395530087,1764700282859,-503.9481396,0.00015068,2]
[395530089,1764700282869,-500.0,0.00015068,2]
[395530091,1764700282879,-500.0,0.00015068,2]
[395530093,1764700282888,-1442.93,0.00015068,2]
[395530095,1764700282898,-500.0,0.00015068,2]
[395530097,1764700282907,-500.0,0.00015068,2]
[395530099,1764700282916,-500.0,0.00015068,2]
[395530101,1764700282926,-743.32,0.00015068,2]
[395530103,1764700282936,-1286.19,0.00015068,2]
[395530105,1764700282945,-504.97296356,0.00015068,2]
[395530107,1764700282954,-321.5752975,0.00015068,2]
[395530109,1764700282964,-164.59819819,0.00015068,2]
[395530111,1764700282975,-500.0,0.00015068,2]
[395530113,1764700282987,-500.0,0.00015068,2]
[395530115,1764700283009,-994.38,0.00015068,2]
[395530117,1764700283023,-500.0,0.00015068,2]
[395530119,1764700283033,-240.44654365,0.00015068,2]
[395530121,1764700283043,-500.0,0.00015068,2]
[395530123,1764700283053,-1207.07,0.00015068,2]
[395530125,1764700283063,-547.67,0.00015068,2]
[395530127,1764700283074,-500.0,0.00015068,2]
[395530129,1764700283084,-500.0,0.00015068,2]
[395530131,1764700283094,-500.0,0.00015068,2]
[395530133,1764700283104,-500.0,0.00015068,2]
[395530135,1764700283114,-643.84,0.00015068,2]
[395530136,1764700283128,-500.0,0.00015068,2]
[395530137,1764700283138,-500.0,0.00015068,2]
[395530138,1764700283148,-500.0,0.00015068,2]
[395530139,1764700283159,-736.5,0.00015068,2]
[395530140,1764700283170,-787.24,0.00015068,2]
[395530141,1764700283180,-500.0,0.00015068,2]
[395530142,1764700283190,-655.37,0.00015068,2]
[395530143,1764700283203,-500.0,0.00015068,2]
[395530144,1764700283214,-500.0,0.00015068,2]
[395530146,1764700283224,-500.0,0.00015068,2]
[395530148,1764700283234,-777.22,0.00015068,2]
[395530150,1764700283244,-717.18,0.00015068,2]
[395530152,1764700283254,-500.0,0.00015068,2]
[395530154,1764700283264,-642.97,0.00015068,2]
[395530156,1764700283273,-500.0,0.00015068,2]
[395530158,1764700283283,-682.99,0.00015068,2]
[395530160,1764700283293,-510.71783546,0.00015068,2]
[395530162,1764700283303,-500.0,0.00015068,2]
[395530164,1764700283312,-500.0,0.00015068,2]
[395530166,1764700283322,-500.0,0.00015068,2]
[395530167,1764700283332,-506.60416288,0.00015068,2]
[395530169,1764700283342,-500.0,0.00015068,2]
[395530171,1764700283352,-516.3594089,0.00015068,2]
[395530173,1764700283362,-500.0,0.00015068,2]
[395530175,1764700283371,-501.57226486,0.00015068,2]
[395530177,1764700283381,-1300.6,0.00015068,2]
[395530179,1764700283392,-1234.64,0.00015068,2]
[395530181,1764700283404,-998.85,0.00015068,2]
[395530190,1764700283414,-500.0,0.00015068,2]
[395530192,1764700283491,-500.0,0.00015068,2]
[395530194,1764700283501,-500.0,0.00015068,2]
[395530196,1764700283511,-663.37,0.00015068,2]
[395530198,1764700283521,-500.0,0.00015068,2]
[395530200,1764700283531,-500.0,0.00015068,2]
[395530202,1764700283540,-500.0,0.00015068,2]
[395530204,1764700283550,-1874.34,0.00015068,2]
[395530206,1764700283559,-500.0,0.00015068,2]
[395530208,1764700283569,-500.0,0.00015068,2]
[395530210,1764700283579,-500.0,0.00015068,2]
[395530212,1764700283589,-500.0,0.00015068,2]
[395530214,1764700283599,-500.0,0.00015068,2]
[395530216,1764700283611,-500.0,0.00015068,2]
[395530219,1764700283621,-1323.39,0.00015068,2]
[395530221,1764700283631,-1022.46,0.00015068,2]
[395530223,1764700283640,-500.0,0.00015068,2]
[395530225,1764700283649,-500.0,0.00015068,2]
[395530227,1764700283659,-680.39,0.00015068,2]
[395530228,1764700283668,-705.84,0.00015068,2]
[395530230,1764700283678,-1214.22,0.00015068,2]
[395530232,1764700283687,-521.42413674,0.00015068,2]
[395530234,1764700283697,-500.0,0.00015068,2]
[395530236,1764700283707,-1015.56,0.00015068,2]
[395530238,1764700283716,-500.0,0.00015068,2]
[395530240,1764700283726,-601.49367028,0.00015068,2]
[395530242,1764700283736,-500.0,0.00015068,2]
[395530244,1764700283746,-508.24,0.00015068,2]
[395530246,1764700283756,-500.0,0.00015068,2]
[395530248,1764700283766,-500.0,0.00015068,2]
[395530250,1764700283775,-501.32830534,0.00015068,2]
[395530252,1764700283786,-1441.93,0.00015068,2]
[395530254,1764700283797,-682.71,0.00015068,2]
[395530256,1764700283809,-1368.61,0.00015068,2]
[395530258,1764700283818,-500.0,0.00015068,2]
[395530260,1764700283828,-627.35,0.00015068,2]
[395530262,1764700283838,-500.0,0.00015068,2]
[395530264,1764700283849,-896.16,0.00015068,2]
[395530266,1764700283858,-500.0,0.00015068,2]
[395530268,1764700283869,-500.0,0.00015068,2]
[395530270,1764700283879,-500.0,0.00015068,2]
[395530272,1764700283888,-851.71,0.00015068,2]
[395530274,1764700283898,-500.0,0.00015068,2]
[395530276,1764700283909,-982.64,0.00015068,2]
[395530278,1764700283920,-2168.86,0.00015068,2]
[395530280,1764700283930,-837.95,0.00015068,2]
[395530282,1764700283941,-500.0,0.00015068,2]
[395530284,1764700283951,-1863.03,0.00015068,2]
[395530286,1764700283961,-500.0,0.00015068,2]
[395530288,1764700283974,-1472.77,0.00015068,2]
[395530290,1764700283984,-784.97,0.00015068,2]
[395530292,1764700283994,-500.0,0.00015068,2]
[395530294,1764700284004,-500.0,0.00015068,2]
[395530296,1764700284014,-500.0,0.00015068,2]
[395530298,1764700284023,-697.16,0.00015068,2]
[395530300,1764700284033,-500.0,0.00015068,2]
[395530302,1764700284043,-1013.11,0.00015068,2]
[395530304,1764700284052,-503.67,0.00015068,2]
[395530306,1764700284062,-500.0,0.00015068,2]
[395530308,1764700284072,-500.0,0.00015068,2]
[395530310,1764700284081,-500.0,0.00015068,2]
[395530312,1764700284090,-500.0,0.00015068,2]
[395530314,1764700284100,-500.0,0.00015068,2]
[395530315,1764700284109,-500.0,0.00015068,2]
[395530317,1764700284118,-500.0,0.00015068,2]
[395530319,1764700284128,-507.18700863,0.00015068,2]
[395530321,1764700284141,-719.86,0.00015068,2]
[395530323,1764700284151,-582.91,0.00015068,2]
[395530325,1764700284160,-502.42592024,0.00015068,2]
[395530327,1764700284170,-500.0,0.00015068,2]
[395530329,1764700284180,-500.0,0.00015068,2]
[395530331,1764700284189,-500.0,0.00015068,2]
[395530333,1764700284199,-500.0,0.00015068,2]
[395530335,1764700284208,-500.0,0.00015068,2]
[395530337,1764700284219,-1792.88,0.00015068,2]
[395530339,1764700284229,-1891.68,0.00015068,2]
[395530341,1764700284238,-1227.22,0.00015068,2]
[395530343,1764700284248,-1823.85,0.00015068,2]
[395530345,1764700284257,-847.98,0.00015068,2]
[395530347,1764700284267,-966.59,0.00015068,2]
[395530349,1764700284277,-500.0,0.00015068,2]
[395530352,1764700284291,-1668.64,0.00015068,2]
[395530354,1764700284301,-500.0,0.00015068,2]
[395530356,1764700284311,-616.11,0.00015068,2]
[395530358,1764700284321,-500.0,0.00015068,2]
[395530360,1764700284330,-500.0,0.00015068,2]
[395530362,1764700284339,-500.0,0.00015068,2]
[395530364,1764700284349,-582.84,0.00015068,2]
[395530366,1764700284358,-1831.7,0.00015068,2]
[395530368,1764700284368,-1002.62,0.00015068,2]
[395530370,1764700284377,-500.0,0.00015068,2]
[395530372,1764700284386,-1375.89,0.00015068,2]
[395530374,1764700284395,-510.17,0.00015068,2]
[395530376,1764700284404,-500.0,0.00015068,2]
[395530378,1764700284413,-1425.0,0.00015068,2]
[395530380,1764700284422,-500.0,0.00015068,2]
[395530381,1764700284432,-645.65,0.00015068,2]
[395530383,1764700284441,-625.42,0.00015068,2]
[395530385,1764700284450,-988.15,0.00015068,2]
[395530387,1764700284460,-500.0,0.00015068,2]
[395530389,1764700284471,-566.53,0.00015068,2]
[395530391,1764700284480,-500.0,0.00015068,2]
[395530393,1764700284490,-500.0,0.00015068,2]
[395530395,1764700284499,-500.0,0.00015068,2]
[395530397,1764700284509,-500.0,0.00015068,2]
[395530399,1764700284517,-500.0,0.00015068,2]
[395530401,1764700284527,-993.17,0.00015068,2]
[395530403,1764700284537,-500.0,0.00015068,2]
[395530407,1764700284558,-516.40514901,0.00015068,2]
[395530409,1764700284567,-500.0,0.00015068,2]
[395530411,1764700284577,-500.0,0.00015068,2]
[395530412,1764700284586,-721.42,0.00015068,2]
[395530414,1764700284596,-782.52,0.00015068,2]
[395530416,1764700284605,-1322.83,0.00015068,2]
[395530418,1764700284614,-500.0,0.00015068,2]
[395530420,1764700284624,-500.0,0.00015068,2]
[395530422,1764700284633,-772.11,0.00015068,2]
[395530424,1764700284643,-616.53,0.00015068,2]
[395530427,1764700284654,-1121.31,0.00015068,2]
[395530428,1764700284663,-553.24040915,0.00015068,2]
[395530430,1764700284675,-1436.21,0.00015068,2]
[395530432,1764700284684,-638.45,0.00015068,2]
[395530435,1764700284695,-500.0,0.00015068,2]
[395530437,1764700284705,-500.0,0.00015068,2]
[395530438,1764700284715,-514.83274447,0.00015068,2]
[395530440,1764700284725,-500.0,0.00015068,2]
[395530442,1764700284734,-573.67,0.00015068,2]
[395530444,1764700284743,-1022.84,0.00015068,2]
[395530446,1764700284753,-880.72,0.00015068,2]
[395530448,1764700284762,-500.0,0.00015068,2]
[395530450,1764700284772,-1113.83,0.00015068,2]
[395530452,1764700284782,-510.16177544,0.00015068,2]
[395530454,1764700284791,-901.12,0.00015068,2]
[395530456,1764700284800,-1158.18,0.00015068,2]
[395530458,1764700284810,-563.34,0.00015068,2]
[395530460,1764700284820,-500.0,0.00015068,2]
[395530463,1764700284829,-507.71918352,0.00015068,2]
[395530464,1764700284839,-946.95,0.00015068,2]
[395530466,1764700284848,-523.1,0.00015068,2]
[395530469,1764700284859,-684.46,0.00015068,2]
[395530471,1764700284871,-930.17,0.00015068,2]
[395530473,1764700284882,-500.0,0.00015068,2]
[395530475,1764700284892,-500.0,0.00015068,2]
[395530477,1764700284902,-500.0,0.00015068,2]
[395530479,1764700284913,-500.0,0.00015068,2]
[395530481,1764700284923,-500.0,0.00015068,2]
[395530483,1764700284933,-1234.72,0.00015068,2]
[395530485,1764700284943,-998.08,0.00015068,2]
[395530487,1764700284952,-1048.81,0.00015068,2]
[395530489,1764700284962,-500.0,0.00015068,2]
[395530491,1764700284974,-500.0,0.00015068,2]
[395530493,1764700284984,-500.0,0.00015068,2]
[395530495,1764700284993,-649.85364144,0.00015068,2]
[395530497,1764700285003,-500.0,0.00015068,2]
[395530499,1764700285012,-665.63,0.00015068,2]
[395530501,1764700285023,-500.0,0.00015068,2]
[395530503,1764700285032,-841.24,0.00015068,2]
[395530505,1764700285042,-1376.14,0.00015068,2]
[395530507,1764700285052,-510.61599961,0.00015068,2]
[395530509,1764700285062,-500.0,0.00015068,2]
[395530511,1764700285072,-1310.97,0.00015068,2]
[395530513,1764700285082,-500.0,0.00015068,2]
[395530516,1764700285091,-294.48495617,0.00015068,2]
[395530518,1764700285102,-954.75,0.00015068,2]
[395530520,1764700285111,-500.0,0.00015068,2]
[395530522,1764700285122,-548.38639394,0.00015068,2]
[395530524,1764700285132,-1672.25,0.00015068,2]
[395530526,1764700285146,-500.0,0.00015068,2]
[395530528,1764700285155,-646.78,0.00015068,2]
[395530530,1764700285168,-500.0,0.00015068,2]
[395530532,1764700285177,-500.0,0.00015068,2]
[395530534,1764700285187,-358.8068935,0.00015068,2]
[395530536,1764700285196,-549.78,0.00015068,2]